bitfinex/quotes_ETHUSD_20251009
["timestamp","ask_amount","ask_price","bid_price","bid_amount"]
[1759998310011,4.3452763,4366.3,4366.1,0.1238]
[1759998310326,2.055,4366.3,4366.2,0.4639]
[1759998310643,2.055,4366.3,4366.1,0.1238]
[1759998310807,0.2359,4368.0,4366.2,0.4639]
[1759998311107,0.29802769,4367.9,4366.2,0.4639]
[1759998311318,12.547,4367.8,4366.2,0.4639]
[1759998311832,2.28901046,4368.7,4366.2,0.4639]
[1759998312042,2.28916765,4368.4,4366.2,0.4639]
[1759998312353,2.28965111,4367.5,4367.1,0.001]
[1759998312654,2.28976286,4367.3,4367.2,0.4639]
[1759998312854,11.18176286,4367.3,4367.2,0.4639]
[1759998313419,8.892,4367.3,4367.2,0.4639]
[1759998313756,11.18174423,4367.3,4367.2,0.4639]
[1759998314455,11.18274423,4367.3,4367.2,0.4639]
[1759998314939,6.511,4367.3,4367.2,0.4639]
[1759998315339,8.80074423,4367.3,4367.2,0.4639]
[1759998315545,6.511,4367.3,4367.2,0.4639]
[1759998315742,3.50034629,4369.4,4367.2,0.4639]
[1759998315934,9.526,4368.3,4367.2,0.4639]
[1759998316130,2.28969625,4367.4,4367.2,0.4639]
[1759998316342,4.36,4367.3,4367.1,0.001]
[1759998316766,6.64974423,4367.3,4367.2,0.4455]
[1759998317267,11.18174423,4367.3,4367.2,0.4455]
[1759998317485,10.06066979,4368.7,4367.2,0.4455]
[1759998317664,2.2895939,4367.6,4367.2,0.4455]
[1759998317966,20.21309547,4368.6,4367.2,0.4455]
[1759998317967,4.923,4367.5,4367.2,0.4455]
[1759998318147,2.28974423,4367.3,4367.2,0.4455]
[1759998318341,6.416,4367.3,4367.1,0.001]
[1759998318541,8.70579638,4367.3,4367.1,0.001]
[1759998318733,2.28979666,4367.2,4367.1,0.001]
[1759998319136,6.416,4367.3,4367.1,0.001]
[1759998319542,8.70575338,4367.3,4367.2,0.4455]
[1759998319738,1.31428344,4368.6,4367.2,0.4455]
[1759998320054,2.28974423,4367.3,4367.2,0.4455]
[1759998320249,8.59674423,4367.3,4367.2,0.4455]
[1759998320657,2.28979666,4367.2,4367.1,0.001]
[1759998320840,2.28899666,4367.2,4367.1,0.4465]
[1759998321040,2.74926765,4368.4,4367.1,0.4465]
[1759998321041,0.44432903,4368.5,4367.1,0.4465]
[1759998321240,9.29776971,4368.4,4367.1,0.4465]
[1759998321441,2.28970565,4367.4,4367.1,0.4465]
[1759998321641,8.80174594,4367.3,4367.1,0.4465]
[1759998321863,6.512,4367.3,4367.1,0.4465]
[1759998322260,2.382,4367.6,4367.1,0.4465]
[1759998322460,2.33174242,4369.4,4367.1,0.4465]
[1759998322665,2.28936443,4368.1,4367.3,2.28973016]
[1759998322973,6.98039595,4368.0,4367.4,0.4455]
[1759998323143,0.41174242,4369.4,4367.4,0.4455]
[1759998323344,11.18569612,4369.3,4367.8,2.2894763]
[1759998323543,2.2890029,4368.8,4367.9,0.4455]
[1759998323789,2.382,4368.8,4368.7,0.1218]
[1759998324104,15.0,4370.0,4368.7,0.5673]
[1759998324268,2.382,4369.9,4368.7,0.5673]
[1759998324470,2.28841219,4369.9,4369.1,2.28874996]
[1759998324671,2.28853387,4369.7,4369.2,0.674375]
[1759998324889,2.28859095,4369.6,4369.3,0.4455]
[1759998325096,2.28854186,4369.6,4369.4,0.4455]
[1759998325271,2.28853899,4369.6,4369.5,0.4455]
[1759998326570,11.18353899,4369.6,4369.5,0.4455]
[1759998326774,2.28859137,4369.5,4369.4,0.1144]
[1759998327179,11.18353899,4369.6,4369.1,0.4455]
[1759998327521,2.28869612,4369.3,4369.2,0.4455]
[1759998328705,2.28880089,4369.1,4369.0,0.1144]
[1759998328918,6.512,4369.1,4368.7,0.1218]
[1759998329403,0.1144,4369.4,4368.7,0.1218]
[1759998329608,15.0,4370.0,4368.8,0.4455]
[1759998329913,8.894,4369.9,4369.3,0.1144]
[1759998330085,15.1144,4370.0,4369.4,0.4455]
[1759998330285,2.28848659,4369.8,4369.6,0.1144]
[1759998330596,2.28847235,4369.8,4369.6,0.1144]
[1759998330800,17.28834891,4370.0,4369.6,0.1144]
[1759998331016,6.513,4369.9,4369.7,0.4455]
[1759998331322,2.28848662,4369.7,4369.6,0.1144]
[1759998331528,15.0,4370.0,4369.6,0.1144]
[1759998331823,15.0,4370.0,4369.8,2.28843151]
[1759998331982,15.0,4370.0,4369.9,0.83329315]
[1759998332187,15.0,4370.0,4369.9,0.5599]
[1759998332784,15.0,4370.0,4369.9,2.84828188]
[1759998332985,15.0,4370.0,4369.9,0.5599]
[1759998333186,23.80132951,4370.0,4369.9,0.4887]
[1759998333420,21.513,4370.0,4369.9,0.4887]
[1759998333916,15.0,4370.0,4369.9,0.4887]
[1759998335532,15.0,4370.0,4369.9,2.77708188]
[1759998335690,15.0,4370.0,4369.9,3.12600162]
[1759998335885,15.0,4370.0,4369.9,0.83761974]
[1759998336129,15.0,4370.0,4369.9,0.5599]
[1759998336421,15.0,4370.0,4368.8,2.28893851]
[1759998336422,2.28859137,4369.5,4369.4,0.4455]
[1759998336727,15.0,4370.0,4369.0,0.4455]
[1759998337018,15.0,4370.0,4369.4,0.4455]
[1759998337019,8.95,4369.9,4369.4,0.4455]
[1759998337232,8.95,4369.9,4367.8,7.06347935]
[1759998337233,2.28843425,4369.8,4367.8,7.06347935]
[1759998337387,2.28890567,4368.9,4368.8,0.4455]
[1759998337586,2.28895806,4368.8,4368.5,0.4455]
[1759998337933,2.28895806,4368.8,4367.1,0.001]
[1759998338100,2.28922006,4368.3,4368.2,0.4455]
[1759998338426,2.28932982,4368.1,4367.9,0.4455]
[1759998338597,6.571,4368.0,4367.3,2.28973038]
[1759998338827,6.571,4368.0,4367.9,0.1218]
[1759998339013,8.86037728,4368.0,4367.9,0.1218]
[1759998339348,6.571,4368.0,4367.1,0.001]
[1759998339513,9.524,4369.4,4367.1,0.001]
[1759998339514,2.28864374,4369.4,4367.9,0.4455]
[1759998339722,2.28937728,4368.0,4367.9,0.4455]
[1759998340223,3.987,4368.0,4367.9,0.4455]
[1759998340547,5.828,4368.0,4367.9,0.4455]
[1759998341047,2.2892414,4368.3,4367.9,0.4455]
[1759998341222,0.222,4369.9,4367.2,2.28979666]
[1759998341411,20.04821,4369.8,4368.2,0.1218]
[1759998341611,2.28937728,4368.0,4367.9,0.1218]
[1759998341816,11.24437728,4368.0,4367.9,0.1218]
[1759998342051,8.955,4368.0,4367.9,0.5673]
[1759998342425,8.86537728,4368.0,4367.9,0.5673]
[1759998342630,11.24637728,4368.0,4367.9,0.5673]
[1759998342830,2.28937728,4368.0,4367.9,0.5673]
[1759998343029,6.266,4368.0,4367.9,0.5673]
[1759998343453,0.59925643,4370.7,4367.9,0.5673]
[1759998343654,17.67500444,4369.5,4368.0,0.4747]
[1759998343822,0.87300444,4369.5,4368.0,0.4747]
[1759998344018,6.081,4369.4,4368.1,0.01459417]
[1759998344223,6.081,4369.4,4368.2,0.4536]
[1759998344646,2.28869612,4369.3,4368.2,0.4536]
[1759998344950,5.517,4369.2,4368.2,0.4536]
[1759998345318,2.28885328,4369.0,4368.1,0.4536]
[1759998345519,2.289219,4368.4,4368.1,0.4536]
[1759998345752,6.008,4368.3,4368.1,0.4536]
[1759998346256,6.008,4368.3,4368.1,0.568]
[1759998346633,2.28911666,4368.5,4368.2,0.4536]
[1759998346830,2.28903276,4368.7,4368.3,0.02289113]
[1759998347061,2.28903276,4368.7,4368.3,0.1144]
[1759998347364,2.61,4368.6,4368.3,0.1144]
[1759998347662,7.57511948,4368.5,4368.1,0.1144]
[1759998347834,2.28926137,4368.3,4368.1,0.1144]
[1759998348235,2.28926137,4368.3,4368.2,0.4536]
[1759998349233,2.28937728,4368.0,4367.9,0.1218]
[1759998349447,11.24237728,4368.0,4367.9,0.1218]
[1759998350265,11.24237728,4368.0,4367.5,0.1144]
[1759998350266,2.28958695,4367.6,4367.5,0.1144]
[1759998350464,2.28958695,4367.6,4367.1,0.001]
[1759998350465,2.28979666,4367.2,4367.1,0.001]
[1759998350638,8.86079666,4367.2,4367.1,0.001]
[1759998350840,8.86079666,4367.2,4367.1,0.4546]
[1759998350841,6.571,4367.2,4367.1,0.4546]
[1759998351457,8.86079666,4367.2,4367.1,0.4546]
[1759998351765,0.1144,4367.5,4367.1,0.4546]
[1759998351940,2.28974423,4367.3,4367.1,0.001]
[1759998352145,2.28979666,4367.2,4367.1,0.001]
[1759998354785,5.18979666,4367.2,4367.1,0.001]
[1759998355104,14.14079666,4367.2,4367.1,0.001]
[1759998355261,14.60649666,4367.2,4367.1,0.001]
[1759998355868,24.13249666,4367.2,4367.1,0.001]
[1759998356272,5.18979666,4367.2,4367.1,0.001]
[1759998356480,14.13979666,4367.2,4367.1,0.001]
[1759998357077,5.18979666,4367.2,4367.1,0.001]
[1759998357386,2.9,4367.2,4367.1,0.001]
[1759998357603,14.13979666,4367.2,4367.1,0.001]
[1759998357755,2.9,4367.2,4367.1,0.001]
[1759998358089,0.4657,4368.5,4367.1,0.4546]
[1759998358290,9.528,4368.3,4367.1,0.4546]
[1759998358491,2.28954053,4367.7,4367.1,0.4546]
[1759998358677,6.567,4367.6,4367.1,0.001]
[1759998358885,9.528,4368.4,4367.1,0.001]
[1759998358886,0.4657,4368.4,4367.1,0.001]
[1759998359203,9.528,4368.1,4367.1,0.001]
[1759998359498,2.2894297,4367.9,4367.1,0.001]
[1759998359662,6.567,4367.8,4367.1,0.001]
[1759998359865,4.7477,4368.0,4367.1,0.001]
[1759998360165,18.475,4367.9,4367.1,0.001]
[1759998360559,2.28958695,4367.6,4367.1,0.001]
[1759998360764,2.28974423,4367.3,4367.1,0.001]
[1759998360988,10.77479666,4367.2,4367.1,0.001]
[1759998361177,11.24049666,4367.2,4367.1,0.001]
[1759998361399,11.87409666,4367.2,4367.1,0.001]
[1759998361723,11.87409666,4367.2,4364.9,0.006]
[1759998361724,2.29058341,4365.7,4364.9,0.006]
[1759998361884,20.76458341,4365.7,4364.9,0.006]
[1759998362084,21.23028341,4365.7,4364.9,0.006]
[1759998362499,2.29095074,4365.0,4364.9,0.006]
[1759998362700,23.15028341,4365.7,4364.9,0.006]
[1759998362701,0.4657,4365.7,4364.9,0.006]
[1759998363022,18.7731846,4365.6,4364.9,0.006]
[1759998363196,1.92,4366.3,4364.9,0.006]
[1759998363197,0.2356,4366.2,4364.9,0.006]
[1759998363514,0.59925643,4367.2,4364.9,0.006]
[1759998363515,0.1144,4365.2,4364.9,0.006]
[1759998363721,1.07,4365.1,4365.0,0.4536]
[1759998363895,3.427,4365.1,4365.0,0.4536]
[1759998364215,9.80581562,4367.4,4365.0,0.568]
[1759998364417,0.1144,4366.1,4365.6,0.1144]
[1759998364618,1.23310365,4367.3,4365.7,0.4536]
[1759998364827,0.1144,4366.5,4365.8,0.1144]
[1759998365034,3.88,4366.4,4365.8,0.1144]
[1759998365196,3.713,4366.3,4365.7,0.4536]
[1759998365390,2.382,4366.2,4365.7,0.4536]
[1759998365586,0.1144,4366.3,4365.7,0.4536]
[1759998365784,2.28974873,4367.3,4366.2,0.1238]
[1759998365984,0.1144,4366.8,4366.3,0.4536]
[1759998366190,4.82080194,4367.2,4364.9,0.006]
[1759998366191,2.374,4366.7,4365.4,0.4536]
[1759998366433,0.1144,4366.4,4365.6,0.1144]
[1759998366587,2.382,4367.0,4366.6,0.1238]
[1759998366918,2.296,4366.9,4366.7,0.4536]
[1759998367284,0.4657,4368.8,4366.6,0.1238]
[1759998367285,9.53,4368.1,4366.8,0.4536]
[1759998367490,2.28947643,4367.9,4366.8,0.4536]
[1759998367687,0.4657,4369.1,4366.8,0.4536]
[1759998367904,11.81908144,4368.6,4366.9,2.28990537]
[1759998368098,11.23211658,4368.5,4367.0,0.4536]
[1759998368291,8.943,4368.5,4367.0,0.4536]
[1759998368620,11.23212197,4368.5,4367.0,0.4536]
[1759998368966,2.2892221,4368.3,4367.0,2.74349183]
[1759998369164,2.2892221,4368.3,4367.1,0.72794918]
[1759998369575,0.7013,4369.7,4368.2,0.1218]
[1759998369720,15.60125643,4370.0,4368.3,0.4536]
[1759998369721,18.473,4369.6,4368.3,0.4536]
[1759998369919,2.28893293,4368.9,4368.2,0.1218]
[1759998370134,15.002,4370.0,4368.2,0.1218]
[1759998370320,2.28867978,4369.4,4368.2,0.5754]
[1759998370569,15.002,4370.0,4368.3,0.4536]
[1759998370866,2.382,4369.3,4368.4,2.28915693]
[1759998371062,4.982,4369.2,4368.5,0.4536]
[1759998371222,4.982,4369.2,4368.6,0.02288852]
[1759998371424,4.982,4369.2,4368.7,0.4536]
[1759998371619,4.982,4369.2,4368.6,0.02288852]
[1759998371620,4.982,4369.2,4368.8,0.4536]
[1759998371862,4.982,4369.2,4368.9,0.4536]
[1759998372076,4.982,4369.2,4368.3,0.4536]
[1759998373053,2.28874914,4369.2,4368.3,0.4536]
[1759998373353,2.2888568,4369.0,4368.3,0.4536]
[1759998373553,4.67090567,4368.9,4368.3,0.4536]
[1759998373734,2.2889682,4368.8,4368.2,0.1218]
[1759998374320,2.382,4368.9,4368.2,0.5686]
[1759998374518,2.28898356,4368.8,4368.2,0.5686]
[1759998374762,1.12338568,4369.0,4368.2,0.5686]
[1759998374925,5.841,4368.9,4368.2,0.5686]
[1759998375556,8.942,4368.8,4368.2,0.5686]
[1759998375722,2.28864642,4369.4,4368.3,0.4468]
[1759998375918,0.4445,4370.3,4368.4,0.02289167]
[1759998376121,2.29007639,4370.5,4368.2,0.1218]
[1759998376122,2.28842108,4369.9,4368.5,2.73589155]
[1759998376354,8.941,4369.8,4368.6,0.4468]
[1759998376521,2.382,4370.2,4368.7,0.0228901]
[1759998376721,0.002,4369.2,4368.8,14.9468]
[1759998376918,0.002,4369.2,4369.1,2.40320089]
[1759998377326,0.002,4369.2,4369.1,2.87288889]
[1759998377572,0.002,4369.2,4369.1,18.86964467]
[1759998377777,0.002,4369.2,4369.1,20.76675667]
[1759998378528,0.002,4369.2,4369.1,21.40035667]
[1759998378721,6.22517431,4370.0,4369.1,21.40035667]
[1759998379055,0.002,4370.5,4370.4,2.28812008]
[1759998379240,0.002,4370.5,4370.4,2.93775175]
[1759998379424,0.002,4370.5,4370.4,17.88455175]
[1759998380270,2.383,4372.0,4371.5,2.28754432]
[1759998380271,0.002,4372.0,4371.5,2.28754432]
[1759998380565,0.002,4372.0,4370.5,2.3668]
[1759998380725,0.002,4372.0,4370.6,7.0018]
[1759998381067,0.302,4371.9,4370.7,2.28791614]
[1759998381385,0.302,4371.9,4370.7,14.9468]
[1759998381679,2.28764845,4371.4,4370.7,14.5]
[1759998381879,2.28764845,4371.4,4369.0,2.28884592]
[1759998381880,2.381,4371.3,4370.1,0.4468]
[1759998382042,6.759,4371.2,4369.1,0.1102]
[1759998382233,5.30489169,4371.1,4369.1,0.1102]
[1759998382562,20.74880599,4371.0,4369.1,0.1102]
[1759998382769,2.28849455,4369.7,4369.1,0.1102]
[1759998382967,2.28865382,4369.4,4369.1,0.1102]
[1759998383261,2.28865382,4369.4,4368.5,0.4468]
[1759998383630,2.28859137,4369.5,4368.5,0.4468]
[1759998383831,4.463,4369.4,4368.5,0.4468]
[1759998384055,4.463,4369.4,4367.9,0.4468]
[1759998384251,4.463,4369.4,4367.4,0.4468]
[1759998384451,2.28874851,4369.2,4367.4,0.4468]
[1759998384688,2.28869612,4369.3,4367.4,0.4468]
[1759998384885,2.28919532,4368.4,4367.4,0.4468]
[1759998385094,0.67335914,4369.5,4367.4,0.4468]
[1759998385095,1.1,4370.6,4368.3,9.80581562]
[1759998385306,0.473,4370.7,4369.3,0.1218]
[1759998385468,9.525,4371.2,4369.4,0.4468]
[1759998385655,0.9525,4371.1,4369.5,14.5]
[1759998385862,12.784,4371.1,4369.6,0.4468]
[1759998386258,15.07176423,4371.1,4369.6,0.4468]
[1759998386457,12.784,4371.1,4369.3,0.1218]
[1759998386687,2.28796431,4370.7,4369.3,0.1218]
[1759998386892,2.2881349,4370.4,4369.3,0.1218]
[1759998387057,0.4445,4371.2,4369.3,0.1218]
[1759998387058,2.28827531,4370.2,4369.3,0.1218]
[1759998387258,2.28829009,4370.1,4369.3,0.1218]
[1759998387563,2.51703214,4370.3,4369.3,0.1218]
[1759998387866,18.64123039,4370.2,4369.3,0.1218]
[1759998388067,0.6,4369.8,4369.3,0.1218]
[1759998388308,0.6,4369.8,4369.4,0.4468]
[1759998388510,0.6,4369.8,4369.5,0.4468]
[1759998388800,7.15,4369.8,4369.6,0.4468]
[1759998389007,7.15,4369.8,4369.4,2.40303714]
[1759998389163,6.55,4369.8,4369.7,0.4468]
[1759998389360,0.1144,4370.1,4369.7,0.4468]
[1759998389588,0.1144,4370.1,4369.8,0.4468]
[1759998389589,0.212,4370.0,4369.8,0.4468]
[1759998389789,0.212,4370.0,4369.9,0.4468]
[1759998389991,0.2112,4370.0,4369.9,0.4468]
[1759998390207,0.1144,4370.1,4369.9,0.4468]
[1759998390360,2.381,4370.2,4370.0,0.4468]
[1759998390560,2.381,4370.2,4369.3,0.1218]
[1759998390561,2.25,4370.1,4369.7,0.1144]
[1759998390797,0.1144,4370.4,4369.7,0.1144]
[1759998391088,4.517,4370.3,4369.7,0.5612]
[1759998391299,0.1144,4370.4,4369.7,0.5612]
[1759998391508,6.57,4370.3,4369.8,0.4468]
[1759998391723,6.57,4370.3,4369.9,0.4468]
[1759998392023,6.547,4370.2,4370.0,0.4468]
[1759998392180,0.1144,4370.4,4369.7,0.1144]
[1759998392382,8.928,4370.3,4370.1,0.4468]
[1759998392618,0.1144,4370.4,4369.7,0.1144]
[1759998392619,2.40252164,4370.4,4369.7,0.1144]
[1759998392827,2.40252164,4370.4,4369.6,0.4468]
[1759998392828,0.1144,4370.1,4369.4,0.1144]
[1759998393127,8.83523058,4370.2,4369.0,0.5612]
[1759998393128,0.1144,4369.7,4369.0,0.5612]
[1759998393423,0.1144,4369.7,4369.0,0.1144]
[1759998393579,0.4445,4371.5,4369.1,0.4468]
[1759998393776,9.524,4371.0,4369.1,0.4468]
[1759998393980,2.28827867,4370.1,4369.1,0.4468]
[1759998394199,5.044,4370.0,4369.1,0.4468]
[1759998395113,5.044,4370.0,4368.8,2.4107541]
[1759998395114,5.044,4370.0,4368.8,0.1218]
[1759998395414,2.28847149,4369.8,4368.8,0.1218]
[1759998395645,5.044,4370.0,4369.8,0.001]
[1759998395922,0.73322721,4370.0,4369.8,0.001]
[1759998396120,8.925,4369.9,4369.8,0.001]
[1759998396315,8.924,4369.9,4369.8,0.001]
[1759998396621,2.28815065,4370.4,4369.8,0.001]
[1759998396622,2.28813462,4370.4,4369.8,0.001]
[1759998396812,0.4445,4371.1,4369.8,0.001]
[1759998396999,9.524,4370.5,4369.8,0.4478]
[1759998397601,0.002,4371.6,4370.0,2.28830496]
[1759998397790,11.905,4371.5,4370.2,2.28818241]
[1759998397994,11.905,4371.5,4370.1,0.2736105]
[1759998397995,12.106,4371.5,4370.1,0.2736105]
[1759998398206,12.106,4371.5,4369.8,0.001]
[1759998398207,2.28817243,4370.3,4369.8,0.001]
[1759998398409,2.28817243,4370.3,4369.3,0.001]
[1759998398410,0.6336,4369.8,4369.3,0.001]
[1759998398609,2.28864374,4369.4,4369.3,0.001]
[1759998398787,10.54224939,4369.4,4369.3,0.001]
[1759998398991,11.46671379,4369.4,4369.3,0.001]
[1759998399192,2.5536,4369.2,4366.6,0.1238]
[1759998399393,2.28911525,4368.5,4366.0,0.1102]
[1759998399706,2.289961,4366.9,4366.0,0.1102]
[1759998399900,4.3,4366.8,4366.0,0.35932]
[1759998401298,4.3,4366.8,4366.0,0.2281]
[1759998401498,2.29007013,4366.7,4365.2,0.1179]
[1759998401828,2.29011129,4366.6,4365.2,0.1179]
[1759998402191,6.59004981,4366.8,4365.2,0.1179]
[1759998402526,2.29005885,4366.7,4364.9,0.006]
[1759998402693,0.73260879,4366.6,4364.9,0.006]
[1759998402897,2.2908935,4365.2,4364.9,0.006]
[1759998403098,5.93890778,4365.1,4364.9,0.006]
[1759998403307,2.381,4365.0,4364.9,0.006]
[1759998404095,8.925,4365.0,4364.9,0.006]
[1759998405243,8.926,4365.0,4364.9,0.006]
[1759998405928,11.21695074,4365.0,4364.9,0.006]
[1759998406133,12.5791729,4365.0,4364.9,0.006]
[1759998406519,12.5791729,4365.0,4364.9,1e-08]
[1759998406520,13.0515729,4365.0,4364.9,1e-08]
[1759998406707,10.6705729,4365.0,4364.9,1e-08]
[1759998406907,22.5815729,4365.0,4364.9,1e-08]
[1759998407708,4.1255729,4365.0,4364.9,1e-08]
[1759998407911,0.4724,4365.0,4363.2,0.1144]
[1759998408146,0.4724,4365.0,4362.9,0.003]
[1759998408147,2.29100323,4364.9,4362.9,0.003]
[1759998408321,2.29117352,4364.6,4362.9,0.003]
[1759998408512,2.29105571,4364.8,4363.0,0.1179]
[1759998408711,4.4,4364.7,4363.1,2.29194077]
[1759998408913,1.92,4365.5,4363.2,0.35918408]
[1759998409231,1.92,4365.5,4362.9,0.003]
[1759998409232,0.6336,4365.0,4362.9,0.003]
[1759998409433,2.2915798,4363.9,4362.9,0.003]
[1759998409614,11.22158933,4363.8,4362.9,0.003]
[1759998409815,2.382,4363.7,4362.9,0.003]
[1759998410211,6.548,4363.6,4362.9,0.003]
[1759998410650,2.29174325,4363.5,4362.9,0.003]
[1759998410945,6.548,4363.6,4362.9,0.003]
[1759998410946,2.29179544,4363.4,4362.9,0.003]
[1759998411136,8.83968787,4363.6,4362.9,0.003]
[1759998411443,6.548,4363.6,4362.9,0.003]
[1759998412029,8.83968629,4363.6,4362.9,0.003]
[1759998412416,2.29174527,4363.5,4362.9,0.003]
[1759998412635,6.548,4363.6,4362.9,0.003]
[1759998412814,2.29200091,4363.0,4362.9,0.003]
[1759998413020,8.83800091,4363.0,4362.9,0.003]
[1759998413353,9.31040091,4363.0,4362.9,0.003]
[1759998413863,19.39430021,4363.0,4362.9,0.003]
[1759998414057,19.75157203,4363.0,4362.9,0.003]
[1759998414264,20.38517203,4363.0,4362.9,0.003]
[1759998414420,19.75157203,4363.0,4362.9,0.003]
[1759998414761,31.66957203,4363.0,4362.9,0.003]
[1759998415349,13.20557203,4363.0,4362.9,0.003]
[1759998415550,31.66957203,4363.0,4362.9,0.003]
[1759998415720,19.20267273,4363.0,4362.9,0.003]
[1759998415921,21.22840091,4363.0,4362.9,0.003]
[1759998416317,21.22760091,4363.0,4362.9,0.003]
[1759998416750,31.31150021,4363.0,4362.9,0.003]
[1759998417122,2.76360091,4363.0,4362.9,0.003]
[1759998417323,21.22840091,4363.0,4362.9,0.003]
[1759998418029,3.64310382,4363.5,4362.9,0.003]
[1759998418030,1.35133383,4363.5,4362.9,0.003]
[1759998418229,2.29200091,4363.0,4362.9,0.003]
[1759998418654,0.4724,4363.6,4362.9,0.003]
[1759998418831,12.941,4363.5,4362.9,0.003]
[1759998419033,2.29200091,4363.0,4362.9,0.003]
[1759998419232,8.84000091,4363.0,4362.9,0.003]
[1759998419557,9.31240091,4363.0,4362.9,0.003]
[1759998419750,3.63314964,4363.4,4362.9,0.003]
[1759998419946,0.2347,4363.9,4362.9,0.003]
[1759998420139,2.29166921,4363.7,4362.9,0.003]
[1759998420337,12.937,4363.8,4362.9,0.003]
[1759998420537,0.4724,4363.6,4362.9,0.003]
[1759998420737,2.29200091,4363.0,4362.9,0.003]
[1759998421066,11.6823937,4363.0,4362.9,0.003]
[1759998421249,12.1547937,4363.0,4362.9,0.003]
[1759998421770,2.29218981,4362.7,4362.4,0.001]
[1759998421975,2.29226361,4362.5,4362.4,0.001]
[1759998422468,2.76466361,4362.5,4362.4,0.001]
[1759998422644,3.92504895,4362.5,4362.4,0.001]
[1759998423040,0.4724,4362.5,4362.4,0.001]
[1759998423267,2.29226361,4362.5,4362.4,0.001]
[1759998423470,2.29231636,4362.4,4360.0,4.67754001]
[1759998423669,0.1144,4361.9,4361.2,0.1144]
[1759998423833,5.928,4361.8,4361.2,0.1144]
[1759998424038,5.928,4361.8,4361.3,0.24074503]
[1759998424342,2.29225432,4362.6,4360.4,1.6]
[1759998424546,8.93,4362.5,4361.4,2.29283817]
[1759998424758,8.93,4362.5,4361.2,2.29290862]
[1759998424759,2.29235645,4362.4,4361.2,2.29290862]
[1759998424933,8.93,4362.5,4360.6,2.29324846]
[1759998425132,8.93,4362.5,4360.4,1.6]
[1759998425133,2.2923185,4362.4,4360.4,3.89335445]
[1759998425362,2.2923185,4362.4,4360.5,0.60643545]
[1759998425563,8.93,4362.5,4360.5,0.60643545]
[1759998425740,2.29239497,4362.3,4361.1,2.29297195]
[1759998426142,2.29239497,4362.3,4360.5,0.60643545]
[1759998426143,2.2925155,4362.1,4360.9,2.29309532]
[1759998426451,6.545,4362.0,4361.2,2.29293878]
[1759998426657,6.545,4362.0,4360.5,0.60643545]
[1759998426839,2.29263148,4361.8,4360.0,2.2935618]
[1759998427039,2.29290773,4361.3,4360.1,2.29348671]
[1759998427259,1.97,4361.2,4360.0,2.29353593]
[1759998427438,1.97,4361.2,4359.9,1.62]
[1759998427439,1.97,4361.2,4360.1,2.29352295]
[1759998427636,1.97,4361.2,4359.9,1.62]
[1759998427637,2.29307611,4361.0,4359.9,1.62]
[1759998427860,1.97,4361.2,4360.1,2.29351579]
[1759998428051,1.97,4361.2,4360.0,0.3913679]
[1759998428247,2.6417,4361.9,4359.9,1.62]
[1759998428448,5.872,4361.8,4359.9,1.62]
[1759998428648,0.2347,4362.3,4360.6,2.29325524]
[1759998428848,2.29276714,4361.6,4360.4,2.29332798]
[1759998429170,0.616,4361.5,4360.6,2.29326128]
[1759998429471,1.261,4361.4,4360.7,0.25454889]
[1759998429672,1.305,4361.7,4359.9,3.54]
[1759998429892,2.29208692,4362.9,4361.7,2.29264495]
[1759998430042,2.385,4362.4,4360.6,1.92]
[1759998430365,2.385,4362.4,4361.5,2.29277581]
[1759998430686,0.59925643,4363.7,4360.7,1.6]
[1759998430840,2.29188128,4363.3,4362.2,2.29241951]
[1759998431168,2.76889131,4363.2,4362.0,2.29249453]
[1759998431381,2.76889131,4363.2,4360.9,2.29310463]
[1759998431382,0.47694522,4363.1,4360.9,2.29310463]
[1759998431593,2.29194509,4363.2,4361.5,2.29278349]
[1759998431594,2.29225655,4362.6,4361.5,2.29278349]
[1759998431746,4.67725655,4362.6,4361.5,2.52206184]
[1759998431939,2.385,4362.6,4361.5,0.22927835]
[1759998432168,2.385,4362.6,4361.7,2.29267421]
[1759998432365,0.59925643,4363.5,4361.6,2.29272556]
[1759998432560,12.96412161,4363.4,4361.7,2.29264404]
[1759998432777,12.96412161,4363.4,4361.8,0.48146833]
[1759998432778,2.29215081,4362.8,4361.8,0.48146833]
[1759998432974,6.89516608,4362.7,4361.8,0.48146833]
[1759998433183,8.833,4362.6,4361.8,0.48146833]
[1759998433477,6.448,4362.5,4360.7,6.92820819]
[1759998433971,6.5624,4362.5,4361.8,0.1144]
[1759998434970,8.85467128,4362.5,4361.8,0.1144]
[1759998435154,2.2923915,4362.3,4361.8,0.1144]
[1759998435473,2.29261642,4361.9,4361.2,0.1144]
[1759998435690,6.178,4361.8,4361.2,0.1144]
[1759998436184,2.29271373,4361.7,4361.2,0.1144]
[1759998436483,0.1144,4361.7,4360.9,0.1144]
[1759998436687,0.1144,4361.2,4360.5,0.1154]
[1759998437097,1.743,4361.1,4360.5,0.1154]
[1759998437264,1.743,4361.1,4360.5,0.001]
[1759998437660,2.385,4361.8,4360.6,2.29326239]
[1759998437884,4.62,4361.8,4361.4,2.29279728]
[1759998438161,2.29220833,4362.7,4361.5,2.29278338]
[1759998438367,9.40558897,4362.6,4361.5,2.52205465]
[1759998438601,2.29227345,4362.5,4361.3,2.29289432]
[1759998438818,0.454,4363.0,4361.2,2.29294446]
[1759998438968,2.385,4362.4,4361.3,2.29285933]
[1759998439170,2.89130319,4363.0,4361.4,0.02239413]